Workbook

Sheet Sheet1
A1: 商品価格/個
A2: 500
A3: 固定費合計/月 | B3: 人件費 | C3: 減価償却費 | D3: 通信費 | E3: 広告宣伝費 | F3: 賃借料 | G3: 雑費
A4: =SUM(B4:G4) -> 4250 | B4: 2500 | C4: 600 | D4: 500 | E4: 200 | F4: 150 | G4: 300
A5: 変動費合計/個 | B5: 仕入原価 | C5: 外注加工費 | D5: 販売促進費
A6: =SUM(B6:D6) -> 380 | B6: 80 | C6: 250 | D6: 50
A8: 販売シュミレーション | B8: 売上 | C8: 変動費 | D8: 固定費 | E8: 総費用 | F8: 利益
A9: 0 | B9: =A9*$A$2 -> 0 | C9: =A9*$A$6 -> 0 | D9: =$A$4 -> 4250 | E9: =C9+D9 -> 4250 | F9: =B9-E9 -> -4250
A10: 10 | B10: =A10*$A$2 -> 5000 | C10: =A10*$A$6 -> 3800 | D10: =$A$4 -> 4250 | E10: =C10+D10 -> 8050 | F10: =B10-E10 -> -3050
A11: 20 | B11: 10000 | C11: 7600 | D11: 4250 | E11: 11850 | F11: -1850
A12: 30 | B12: 15000 | C12: 11400 | D12: 4250 | E12: 15650 | F12: -650
A13: 40 | B13: 20000 | C13: 15200 | D13: 4250 | E13: 19450 | F13: 550
A14: 50 | B14: 25000 | C14: 19000 | D14: 4250 | E14: 23250 | F14: 1750
A15: 60 | B15: 30000 | C15: 22800 | D15: 4250 | E15: 27050 | F15: 2950
A17: 損益分岐点販売 | B17: =A2*A4/(A2-A6) -> 17708.33333

Sheet Sheet2
O4: 変動費 | P4: 仕入原価 | Q4: 外注加工費 | R4: 販売促進費 | S4: 変動費合計/個
I5: 売上高 | J5: =J7*Q14 -> 18000 | L5: 変動費 | M5: =(J5/J9)*S7 -> 13680
J6: 売上個数 | M6: =M5/J5 -> 0.76
J7: 36 | P7: 80 | Q7: 250 | R7: 50 | S7: =SUM(P7:R7) -> 380
I9: 商品単価 | J9: 500 | L9: 限界利益 | M9: 固定費 | O9: 固定費 | P9: 人件費 | Q9: 減価償却費 | R9: 通信費 | S9: 広告宣伝費 | T9: 賃借料 | U9: 雑費 | V9: 固定費合計/月
L10: =J5-M5 -> 4320 | M10: =V12 -> 4250
L11: =L10/J5 -> 0.24 | M11: =M10/J5 -> 0.2361111111
P12: 2500 | Q12: 600 | R12: 500 | S12: 200 | T12: 150 | U12: 300 | V12: =SUM(P12:U12) -> 4250
M13: 利益
M14: =L10-M10 -> 70 | P14: 商品価格/個 | Q14: =J9 -> 500 | S14: 限界利益/個 | T14: 120
M15: =M14/J5 -> 0.003888888889
I16: （金額単位:千円) | O16: 分岐点 | P16: 販売個数 | R16: 売上 | S16: 変動費 | T16: 固定費 | U16: 総費用 | V16: 利益
M17: 変動費率 | O17: =B21 -> 17708.33333 | Q17: 0 | R17: 0 | S17: 0 | T17: =V12 -> 4250 | U17: =S17+T17 -> 4250 | V17: =R17-U17 -> -4250
M18: 0.76 | O18: =B21 -> 17708.33333 | Q18: 10 | R18: =Q14*Q18 -> 5000 | S18: =S7*Q18 -> 3800 | T18: =V12 -> 4250 | U18: =S18+T18 -> 8050 | V18: =R18-U18 -> -3050
O19: =B21 -> 17708.33333 | Q19: 20 | R19: =Q14*Q19 -> 10000 | S19: =S7*Q19 -> 7600 | T19: =V12 -> 4250 | U19: =S19+T19 -> 11850 | V19: =R19-U19 -> -1850
B20: 損益分岐点売上高 | D20: 損益分岐点比率 | F20: 安全率 | I20: 目標利益 | L20: 必要売上高 | O20: =B21 -> 17708.33333 | Q20: 30 | R20: =Q14*Q20 -> 15000 | S20: =S7*Q20 -> 11400 | T20: =V12 -> 4250 | U20: 15650 | V20: -650
B21: =M10/(1-M5/J5) -> 17708.33333 | D21: =B21/J5 -> 0.9837962963 | F21: =1-D21 -> 0.0162037037 | I21: 800 | L21: =IF(I21="","",(M10+I21)/L11) -> 21041.66667 | O21: =B21 -> 17708.33333 | Q21: 40 | R21: =Q14*Q21 -> 20000 | S21: =S7*Q21 -> 15200 | T21: =V12 -> 4250 | U21: 19450 | V21: 550
O22: =B21 -> 17708.33333 | Q22: 50 | R22: =Q14*Q22 -> 25000 | S22: =S7*Q22 -> 19000 | T22: =V12 -> 4250 | U22: 23250 | V22: 1750
O23: =B21 -> 17708.33333 | Q23: 60 | R23: =Q14*Q23 -> 30000 | S23: =S7*Q23 -> 22800 | T23: =V12 -> 4250 | U23: 27050 | V23: 2950
B26: 損益分岐点とは、売上高と費用が同じで、利益がゼロの状態をいう。
B27: つまり、売上高が損益分岐点売上より下回るときは赤字になり、上回れば利益が出ることになります。
B28: 損益分岐点売上高とは、
E29: 変動費
B30: 損益分岐点売上=固定費÷(1- | F30: )
E31: 売上高
D32: 固定費
B33: 損益分岐点売上=
D34: 限界利益率
B36: 限界利益とは、売上高から変動費を差し引いたもので、固定費に利益を足したものとも考えられる。
B37: つまり限界利益によって、固定費を回収した残りが利益になります。
B38: 限界利益率は、売上高に対する限界利益の割合を表し、限界利益率が高いほど収益性が良好と言える。
B40: 限界利益 = 売上高 － 変動費
D42: 限界利益
B43: 限界利益率 | C43: ＝
D44: 売上高
B46: 固定費とは、売上高の増減に関係なく発生する固定的な費用である。
B47: 変動費とは、売上高の増減に応じて変動する費用である。
B49: 変動費率は、売上高に対する変動費の割合である。
D50: 変動費
B51: 変動費率 | C51: = | J51: 変動費 | K51: = | L51: (売上高/製品単価)×変動費単価
D52: 売上高 | K52: = | L52: 売上個数×変動費単価
B54: 目標利益達成に必要な売上高は、限界利益率を高くすれば、目標利益達成に必要な売上高が相対的に低くなります。
F55: 固定費+目標利益
B56: 目標利益達成に必要な売上高 | E56: =
F57: 限界利益率
